bitfinex-derivatives/quotes_SOLF0:USTF0_20220104
["timestamp","ask_amount","ask_price","bid_price","bid_amount"]
[1641265809434,3.0,167.29,167.2,27.66479]
[1641265809635,27.66479,167.28,167.2,27.66479]
[1641265810034,30.66479,167.28,167.2,27.66479]
[1641265810635,30.66479,167.28,167.22,4.19920927]
[1641265810944,23.91089149,167.28,167.22,4.19920927]
[1641265811334,23.91089149,167.28,167.21,6.40636666]
[1641265811534,3.0,167.28,167.21,6.40636666]
[1641265812037,27.66479,167.27,167.21,6.40636666]
[1641265812435,27.66479,167.27,167.2,4.19920927]
[1641265812837,35.38379,167.27,167.2,4.19920927]
[1641265813037,3.0,167.24,167.2,4.19920927]
[1641265813238,3.0,167.24,167.2,6.40636666]
[1641265813638,32.7884,167.26,167.2,6.40636666]
[1641265813639,3.0,167.23,167.2,6.40636666]
[1641265813837,7.661,167.23,167.2,6.40636666]
[1641265814040,7.661,167.23,167.2,4.19920927]
[1641265814237,9.7152343,167.23,167.14,31.86399927]
[1641265814442,6.7152343,167.23,167.14,31.86399927]
[1641265815043,2.0542343,167.22,167.14,31.86399927]
[1641265815243,35.0955343,167.22,167.14,31.86399927]
[1641265815444,35.0955343,167.22,167.14,34.86399927]
[1641265815744,12.59641067,167.25,167.15,3.0]
[1641265815948,30.9101,167.24,167.16,29.8138]
[1641265816144,30.9101,167.24,167.19,27.66479]
[1641265816344,30.9101,167.24,167.19,33.55479]
[1641265816644,12.59641067,167.25,167.19,33.55479]
[1641265816843,43.34451067,167.28,167.19,33.55479]
[1641265817247,43.34451067,167.28,167.19,27.66479]
[1641265817645,2.05291877,167.27,167.19,31.86399927]
[1641265818245,5.05291877,167.27,167.19,4.19920927]
[1641265818445,3.0,167.26,167.19,4.19920927]
[1641265818644,3.0,167.25,167.17,4.19920927]
[1641265818845,4.293,167.26,167.17,4.19920927]
[1641265819246,3.0,167.25,167.17,4.19920927]
[1641265819647,5.05291877,167.25,167.17,4.19920927]
[1641265820047,5.05291877,167.25,167.17,31.86399927]
[1641265820447,2.05291877,167.24,167.17,27.66479]
[1641265821046,3.0,167.23,167.16,4.19920927]
[1641265821746,3.0,167.24,167.16,4.19920927]
[1641265821948,3.0,167.24,167.15,37.17004562]
[1641265822248,27.66479,167.22,167.15,6.34564562]
[1641265822650,27.66479,167.22,167.15,4.19920927]
[1641265822846,58.12759,167.22,167.15,4.19920927]
[1641265823446,58.12759,167.22,167.15,6.34564676]
[1641265825049,58.12759,167.22,167.15,4.19920927]
[1641265825247,58.12759,167.22,167.14,31.86399927]
[1641265825648,61.12759,167.22,167.14,31.86399927]
[1641265826050,61.12759,167.22,167.14,27.66479]
[1641265826349,3.0,167.21,167.14,27.66479]
[1641265826552,61.12759,167.22,167.14,27.66479]
[1641265827149,58.12759,167.22,167.14,27.66479]
[1641265827351,30.4628,167.22,167.14,33.47379]
[1641265827753,30.4628,167.22,167.16,4.19920927]
[1641265828651,33.4628,167.22,167.16,4.19920927]
[1641265829153,33.4628,167.22,167.17,4.19920927]
[1641265829852,33.4628,167.22,167.15,6.34571192]
[1641265830553,2.06459348,167.21,167.18,4.19920927]
[1641265832657,2.06459348,167.21,167.2,4.19920927]
[1641265832856,2.06459348,167.21,167.2,8.57420927]
[1641265833660,15.59641067,167.22,167.2,4.375]
[1641265834158,2.06459348,167.21,167.2,4.375]
[1641265834960,2.06459348,167.21,167.18,4.19920927]
[1641265837165,15.59641067,167.22,167.18,4.19920927]
[1641265837367,3.0,167.22,167.18,4.759]
[1641265837566,58.77359,167.25,167.18,4.759]
[1641265837767,31.1088,167.25,167.18,4.759]
[1641265837965,27.41441163,167.28,167.18,4.759]
[1641265838166,30.6993,167.27,167.18,4.759]
[1641265839170,2.06312666,167.26,167.23,4.19920927]
[1641265839368,2.06312666,167.26,167.23,10.76120927]
[1641265840369,5.06312666,167.26,167.23,10.76120927]
[1641265840575,5.06312666,167.26,167.23,4.19920927]
[1641265841271,2.06312666,167.26,167.23,4.19920927]
[1641265842272,2.06312666,167.26,167.21,4.19920927]
[1641265842273,12.59641067,167.25,167.21,4.19920927]
[1641265843874,14.65953733,167.26,167.22,4.19920927]
[1641265844475,14.65953733,167.26,167.22,6.35713229]
[1641265846473,14.65953733,167.26,167.22,4.19920927]
[1641265847675,14.65953733,167.26,167.24,27.66479]
[1641265848475,12.59641067,167.28,167.25,6.35713229]
[1641265849276,14.65953733,167.29,167.25,6.35713229]
[1641265850078,14.65953733,167.29,167.25,4.19920927]
[1641265851178,14.65953733,167.29,167.25,6.35713229]
[1641265851878,12.59641067,167.28,167.24,6.35713229]
[1641265854481,12.59641067,167.28,167.25,27.66479]
[1641265856285,12.59641067,167.27,167.23,4.19920927]
[1641265856884,12.59641067,167.27,167.23,6.35726064]
[1641265857485,14.65953733,167.27,167.23,6.35726064]
[1641265858086,12.59641067,167.28,167.24,4.19920927]
[1641265861291,27.66479,167.25,167.24,9.27e-06]
[1641265861490,27.66479,167.25,167.2,12.66010357]
[1641265861690,40.26120067,167.25,167.19,30.7782]
[1641265862094,40.26120067,167.25,167.17,12.66010357]
[1641265862291,12.59641067,167.25,167.17,12.66010357]
[1641265862794,12.59641067,167.22,167.16,31.4716]
[1641265863394,12.59641067,167.23,167.17,2.1578079]
[1641265864297,14.65953733,167.24,167.17,2.1578079]
[1641265865097,12.59641067,167.22,167.17,2.1578079]
[1641265866297,10.38270149,167.24,167.21,3.0]
[1641265866499,32.92887853,167.26,167.21,8.988]
[1641265866900,32.92887853,167.26,167.22,3.0]
[1641265867104,32.92887853,167.33,167.21,8.988]
[1641265867299,32.92887853,167.33,167.3,27.66479]
[1641265868304,32.92887853,167.35,167.3,27.66479]
[1641265870109,32.92887853,167.35,167.27,27.66479]
[1641265871013,32.92887853,167.35,167.26,31.8057]
[1641265871615,32.92887853,167.35,167.28,27.66479]
[1641265872018,32.92887853,167.36,167.28,27.66479]
[1641265872415,32.92887853,167.36,167.28,30.66479]
[1641265872816,62.69507853,167.37,167.28,30.66479]
[1641265873016,62.69507853,167.37,167.28,27.66479]
[1641265873214,62.69507853,167.37,167.28,30.66479]
[1641265873416,32.92887853,167.37,167.29,3.0]
[1641265873617,32.92887853,167.37,167.36,27.66479]
[1641265873915,26.32317412,167.39,167.36,34.33379]
[1641265874721,32.6391,167.42,167.36,34.33379]
[1641265875118,3.37511797,167.41,167.36,34.33379]
[1641265877017,3.37511797,167.43,167.36,34.33379]
[1641265877616,3.37511797,167.43,167.39,27.66479]
[1641265878016,3.37511797,167.43,167.36,34.33379]
[1641265878616,29.69829209,167.43,167.36,34.33379]
[1641265879218,3.37511797,167.42,167.36,34.33379]
[1641265879717,3.37511797,167.42,167.39,27.66479]
[1641265880617,3.37511797,167.43,167.39,27.66479]
[1641265884322,3.37511797,167.44,167.39,27.66479]
[1641265887023,14.07099619,167.44,167.39,27.66479]
[1641265887223,11.07099619,167.44,167.36,59.15999]
[1641265887625,3.37511797,167.43,167.36,27.66479]
[1641265887923,6.37511797,167.43,167.36,27.66479]
[1641265888124,3.37511797,167.43,167.36,27.66479]
[1641265888424,3.37511797,167.42,167.36,27.66479]
[1641265888924,3.37511797,167.43,167.36,27.66479]
[1641265889124,32.69829209,167.43,167.36,27.66479]
[1641265889624,3.37511797,167.42,167.36,27.66479]
[1641265890024,3.37511797,167.42,167.34,27.66479]
[1641265891025,29.69829209,167.43,167.34,27.66479]
[1641265891428,3.37511797,167.42,167.34,27.66479]
[1641265891627,3.37511797,167.42,167.31,31.409]
[1641265891826,9.59011797,167.42,167.31,31.409]
[1641265892227,3.0,167.41,167.32,27.66479]
[1641265892428,9.215,167.42,167.32,36.84183003]
[1641265892627,3.37531835,167.4,167.32,36.84183003]
[1641265893029,3.37531835,167.41,167.32,27.66479]
[1641265895735,6.37531835,167.41,167.32,27.66479]
[1641265895936,3.0,167.4,167.32,27.66479]
[1641265896136,6.37531835,167.4,167.32,27.66479]
[1641265896337,27.66479,167.39,167.29,27.66479]
[1641265896537,66.48340835,167.39,167.29,27.66479]
[1641265896939,12.65840049,167.37,167.29,40.32319049]
[1641265898438,12.65840049,167.36,167.29,27.66479]
[1641265899540,3.0,167.34,167.28,12.65840049]
[1641265899740,34.6508,167.35,167.28,12.65840049]
[1641265899940,31.6508,167.35,167.28,12.65840049]
[1641265900440,12.65840049,167.34,167.27,12.65840049]
[1641265901245,71.97598902,167.35,167.27,12.65840049]
[1641265902548,3.37659732,167.34,167.27,12.65840049]
[1641265903352,12.66039902,167.33,167.25,21.83565465]
[1641265903948,15.66039902,167.33,167.25,21.83565465]
[1641265904350,27.66479,167.31,167.25,21.83565465]
[1641265904750,3.0,167.29,167.23,12.65840049]
[1641265905651,28.65703905,167.3,167.23,15.65840049]
[1641265905958,28.65703905,167.3,167.23,12.65840049]
[1641265906356,27.66479,167.28,167.23,12.65840049]
[1641265906556,27.66479,167.28,167.21,12.65840049]
[1641265907459,1.89621279,167.27,167.21,12.65840049]
[1641265907658,6.16521279,167.27,167.21,12.65840049]
[1641265908258,1.89621279,167.26,167.2,12.65840049]
[1641265910360,1.89621279,167.26,167.19,23.99934197]
[1641265910562,1.89621279,167.26,167.19,26.99934197]
[1641265910760,1.89621279,167.26,167.19,23.99934197]
[1641265911064,14.55661181,167.27,167.2,2.3254153]
[1641265911770,14.55661181,167.27,167.19,12.65840049]
[1641265912369,27.66479,167.24,167.19,14.98381579]
[1641265912868,32.34079,167.24,167.19,14.98381579]
[1641265913068,32.34079,167.24,167.19,12.65840049]
[1641265914973,1.89741384,167.23,167.17,23.99934197]
[1641265915473,14.55781286,167.23,167.15,15.65840049]
[1641265916276,14.55781286,167.23,167.16,2.3254153]
[1641265921578,14.55781286,167.23,167.19,4.22317996]
[1641265921982,1.89741384,167.23,167.21,4.22317996]
[1641265922181,1.89741384,167.23,167.21,7.22317996]
[1641265922382,1.89741384,167.23,167.22,3.0]
[1641265923783,12.66039902,167.25,167.22,3.0]
[1641265923982,12.66039902,167.25,167.21,37.72796996]
[1641265924182,12.66039902,167.28,167.24,3.0]
[1641265924583,12.66039902,167.28,167.25,27.66479]
[1641265924784,12.66039902,167.28,167.25,30.66479]
[1641265925384,12.66039902,167.31,167.27,4.22116583]
[1641265926190,12.66039902,167.3,167.26,4.22116583]
[1641265926390,16.0380191,167.3,167.26,4.22116583]
[1641265926789,12.66039902,167.3,167.26,4.22116583]
[1641265927192,12.66039902,167.29,167.25,4.22116583]
[1641265927490,16.03801557,167.29,167.25,4.22116583]
[1641265927690,12.66039902,167.29,167.25,4.22116583]
[1641265928991,12.66039902,167.3,167.26,4.22116583]
[1641265930694,12.66039902,167.3,167.27,4.22116583]
[1641265931496,12.66039902,167.29,167.25,4.22116583]
[1641265931697,12.66039902,167.29,167.25,31.88595583]
[1641265932097,12.66039902,167.29,167.25,34.88595583]
[1641265932294,12.66039902,167.31,167.25,34.88595583]
[1641265932995,12.66039902,167.31,167.25,30.66479]
[1641265933197,12.66039902,167.3,167.25,30.66479]
[1641265934199,12.66039902,167.3,167.26,3.0]
[1641265934897,12.66039902,167.3,167.25,27.66479]
[1641265935097,16.76339902,167.3,167.25,3.0]
[1641265935298,16.76339902,167.3,167.24,4.22116583]
[1641265936497,16.76339902,167.3,167.25,3.0]
[1641265936998,12.66039902,167.3,167.26,4.22116583]
[1641265937398,12.66039902,167.3,167.27,3.0]
[1641265937599,12.66039902,167.3,167.27,7.22116583]
[1641265937798,12.66039902,167.3,167.27,4.22116583]
[1641265938200,12.66039902,167.3,167.26,4.22116583]
[1641265939903,12.66039902,167.3,167.27,4.22116583]
[1641265941804,20.48506893,167.31,167.26,4.22116583]
[1641265942005,12.66039902,167.31,167.26,4.22116583]
[1641265943710,52.79609902,167.32,167.27,4.22116583]
[1641265944110,3.37714754,167.31,167.27,4.22116583]
[1641265944611,12.66039902,167.3,167.26,4.22116583]
[1641265946310,12.66039902,167.3,167.26,7.22116583]
[1641265946512,12.66039902,167.3,167.26,3.0]
[1641265946712,12.66039902,167.3,167.25,4.22116583]
[1641265947313,12.66039902,167.3,167.26,3.0]
[1641265948214,18.08339902,167.31,167.26,7.22116583]
[1641265948414,18.08339902,167.31,167.26,4.22116583]
[1641265948814,3.37735622,167.3,167.26,4.22116583]
[1641265949015,27.66479,167.29,167.26,4.22116583]
[1641265949719,40.32518902,167.29,167.24,4.22116583]
[1641265950615,12.66039902,167.28,167.24,4.22116583]
[1641265951419,12.66039902,167.28,167.23,4.22116583]
[1641265952217,12.66039902,167.26,167.21,4.22116583]
[1641265952418,19.05739902,167.26,167.21,4.22116583]
[1641265953027,27.66479,167.25,167.21,4.22116583]
[1641265953226,27.66479,167.25,167.18,15.65840049]
[1641265953227,40.32518902,167.25,167.2,4.22116583]
[1641265954024,27.66479,167.25,167.21,4.22116583]
[1641265955227,12.66039902,167.26,167.22,3.0]
[1641265955524,12.66039902,167.26,167.21,4.22116583]
[1641265955924,12.66039902,167.26,167.24,3.0]
[1641265956124,12.66039902,167.26,167.24,8.22]
[1641265956524,12.66039902,167.26,167.24,5.22]
[1641265956724,44.20969902,167.28,167.24,5.22]
[1641265957125,12.66039902,167.28,167.24,5.22]
[1641265958829,12.66039902,167.29,167.24,5.22]
[1641265959429,12.66039902,167.29,167.23,4.22116583]
[1641265960332,16.0381161,167.28,167.22,4.22116583]
[1641265960930,19.24739902,167.28,167.22,4.22116583]
[1641265961331,3.37798931,167.27,167.22,4.22116583]
[1641265961633,3.37798931,167.27,167.21,4.22116583]
[1641265962234,31.04277931,167.27,167.21,4.22116583]
[1641265962435,27.66479,167.27,167.21,4.22116583]
[1641265962835,40.32518902,167.27,167.2,4.22116583]
[1641265963936,40.32518902,167.27,167.2,6.5578561]
[1641265964236,1.87537277,167.26,167.21,27.66479]
[1641265964436,1.87537277,167.26,167.21,32.09879]
[1641265964734,14.53577179,167.29,167.22,6.5578561]
[1641265965135,14.53577179,167.29,167.25,3.0]
[1641265965335,14.53577179,167.29,167.25,8.12]
[1641265965535,1.87537277,167.29,167.25,8.12]
[1641265966034,1.87537277,167.29,167.25,5.12]
[1641265966237,1.87537277,167.29,167.27,3.0]
[1641265966434,14.53577179,167.3,167.27,3.0]
[1641265966637,14.53577179,167.3,167.25,5.12]
[1641265967134,1.87537277,167.32,167.25,9.34116583]
[1641265967734,1.87537277,167.32,167.26,6.55815038]
[1641265967935,4.0,167.31,167.22,12.65840049]
[1641265968135,4.0,167.31,167.22,15.65840049]
[1641265968136,27.66479,167.29,167.22,15.65840049]
[1641265968338,32.8622,167.3,167.22,12.65840049]
[1641265968537,12.66039902,167.27,167.22,8.293]
[1641265968738,12.66039902,167.27,167.26,3.0]
[1641265968936,12.66039902,167.27,167.22,5.293]
[1641265969339,12.66039902,167.27,167.22,8.293]
[1641265969840,12.66039902,167.31,167.22,8.293]
[1641265970240,12.66039902,167.31,167.22,32.95779]
[1641265970638,12.66039902,167.31,167.22,35.95779]
[1641265971042,3.37737598,167.3,167.22,35.95779]
[1641265971241,12.66039902,167.28,167.22,8.293]
[1641265971843,34.14881325,167.31,167.22,3.0]
[1641265972041,34.14881325,167.31,167.2,21.71887321]
[1641265972242,34.14881325,167.31,167.21,3.0]
[1641265972442,27.66479,167.28,167.21,3.0]
[1641265972842,12.66591356,167.27,167.21,3.0]
[1641265974041,40.33070356,167.28,167.21,3.0]
[1641265975044,12.66591356,167.28,167.21,3.0]
[1641265975243,12.66591356,167.27,167.21,3.0]
[1641265975445,17.57691356,167.27,167.21,3.0]
[1641265979246,17.57691356,167.27,167.19,31.9456]
[1641265981450,17.57691356,167.27,167.22,3.0]
[1641265981850,45.24170356,167.27,167.19,31.9456]
[1641265983850,32.57579,167.27,167.19,31.9456]
[1641265985251,45.24170356,167.27,167.19,31.9456]
[1641265985551,54.42170356,167.27,167.19,31.9456]
[1641265986052,26.75691356,167.27,167.19,31.9456]
[1641265988056,26.75691356,167.27,167.2,3.0]
[1641265988756,12.66591356,167.26,167.2,3.0]
[1641265989455,12.66591356,167.26,167.19,31.9456]
[1641265990060,12.66591356,167.26,167.21,3.0]
[1641265990455,12.66591356,167.25,167.19,31.9456]
[1641265990956,12.66591356,167.25,167.21,3.0]
[1641265991157,49.74021449,167.27,167.21,3.0]
[1641265991760,12.66459704,167.25,167.21,3.0]
[1641265992159,12.66459704,167.25,167.19,31.9456]
[1641265992362,12.66459704,167.25,167.22,3.0]
[1641265992760,12.66459704,167.25,167.17,4.65840049]
[1641265992961,12.66459704,167.25,167.18,3.0]
[1641265993161,27.66479,167.21,167.18,3.0]
[1641265993362,32.10679,167.21,167.18,3.0]
[1641265993762,32.10679,167.21,167.14,33.0348]
[1641265993961,25.35002862,167.21,167.14,33.0348]
[1641265998566,4.442,167.21,167.14,33.0348]
[1641265998767,30.5343,167.24,167.14,33.0348]
[1641265998967,30.5343,167.24,167.15,8.90168544]
[1641265999166,27.66479,167.22,167.17,3.0]
[1641265999366,33.62579,167.22,167.17,3.0]
[1641265999566,33.62579,167.22,167.16,3.0]
[1641265999768,33.62579,167.22,167.15,8.90168544]
[1641266000470,33.62579,167.22,167.14,33.0348]
[1641266001570,33.62579,167.22,167.16,3.0]
[1641266006478,33.62579,167.22,167.14,33.0348]
[1641266006675,4.0,167.2,167.11,3.0]
[1641266006875,4.0,167.2,167.08,31.3835]
[1641266007475,27.66479,167.16,167.11,3.0]
[1641266007675,31.90779,167.16,167.11,3.0]
[1641266010783,31.90779,167.16,167.08,31.3835]
[1641266011280,31.90779,167.16,167.11,3.0]
[1641266013487,59.57258,167.16,167.11,3.0]
[1641266014183,59.57258,167.16,167.08,31.3835]
[1641266014383,59.57258,167.16,167.08,34.3835]
[1641266014986,92.80588,167.16,167.08,34.3835]
[1641266015484,2.06523722,167.15,167.08,31.3835]
[1641266015884,2.06523722,167.15,167.11,3.0]
[1641266016089,2.06523722,167.15,167.09,3.0]
[1641266016284,2.06523722,167.15,167.08,31.3835]
[1641266016684,2.06523722,167.15,167.11,3.0]
[1641266018892,2.06523722,167.15,167.08,31.3835]
[1641266019087,6.99923722,167.15,167.08,31.3835]
[1641266019286,6.99923722,167.15,167.1,3.0]
[1641266019888,2.06523722,167.14,167.11,2.15001746]
[1641266022390,2.06523722,167.14,167.09,2.15001746]
[1641266025294,6.06523722,167.14,167.09,2.15001746]
[1641266025997,2.06523722,167.13,167.09,2.15001746]
[1641266028498,2.06523722,167.13,167.1,4.22486419]
[1641266029200,16.67398456,167.14,167.1,4.22486419]
[1641266029400,4.0,167.14,167.08,3.0]
[1641266032109,4.0,167.14,167.04,38.66496419]
[1641266033105,4.0,167.14,167.04,34.4401]
[1641266033607,4.0,167.14,167.05,3.0]
[1641266034005,27.66479,167.12,167.05,3.0]
[1641266036110,14.74979409,167.11,167.07,4.22486419]
[1641266037316,14.74979409,167.11,167.08,3.0]
[1641266037712,14.74979409,167.11,167.09,3.0]
[1641266037911,14.74979409,167.11,167.09,9.053]
[1641266038414,2.07580953,167.11,167.09,6.053]
[1641266038713,2.07580953,167.11,167.1,3.0]
[1641266038916,12.67398456,167.14,167.1,9.3748257]
[1641266039315,12.67398456,167.14,167.1,6.3748257]
[1641266039713,14.74979409,167.15,167.11,6.3748257]
[1641266040916,2.07580953,167.15,167.12,4.22486419]
[1641266041715,12.67398456,167.13,167.09,6.3748257]
[1641266042417,27.66479,167.12,167.09,6.3748257]
[1641266043018,2.07580953,167.11,167.09,6.3748257]
[1641266043717,2.07580953,167.11,167.08,6.3748257]
[1641266045119,2.07580953,167.11,167.1,3.0]
[1641266045933,2.07580953,167.11,167.08,6.3748257]
[1641266046422,2.07580953,167.11,167.1,6.3748257]
[1641266046622,6.527,167.13,167.1,6.3748257]
[1641266047426,14.74979409,167.12,167.08,6.3748257]
[1641266049123,14.74979409,167.12,167.08,5.8548257]
[1641266049726,14.74979409,167.12,167.07,27.66479]
[1641266049924,12.67398456,167.11,167.07,27.66479]
[1641266050126,12.67398456,167.11,167.05,36.1754]
[1641266050325,40.33877456,167.11,167.05,36.1754]
[1641266051627,2.07580953,167.1,167.06,2.14514137]
[1641266053027,40.33877456,167.11,167.05,36.1754]
[1641266053226,27.66479,167.11,167.05,36.1754]
[1641266055634,20.90380644,167.11,167.05,36.1754]
[1641266056235,62.13659,167.12,167.05,33.1754]
[1641266056535,12.67398456,167.14,167.08,3.0]
[1641266056735,12.67398456,167.14,167.07,5.057]
[1641266056935,2.13261073,167.11,167.07,5.057]
[1641266057434,2.13261073,167.14,167.09,3.0]
[1641266058038,2.13261073,167.14,167.07,5.057]
[1641266058236,2.13261073,167.14,167.09,3.0]
[1641266058437,2.13261073,167.14,167.05,60.84019]
[1641266058840,2.13261073,167.14,167.08,3.0]
[1641266059239,12.67398456,167.13,167.08,3.0]
[1641266059941,12.67398456,167.13,167.09,2.08450252]
[1641266061545,12.67398456,167.12,167.06,3.0]
[1641266061744,12.67398456,167.12,167.05,73.51417456]
[1641266061945,12.67398456,167.12,167.07,2.08452227]
[1641266062245,12.67398456,167.12,167.08,3.0]
[1641266063544,12.67398456,167.13,167.09,2.08452227]
[1641266064347,12.67398456,167.12,167.05,45.84938456]
[1641266064547,12.67398456,167.12,167.05,48.84938456]
[1641266064751,27.66479,167.1,167.05,48.84938456]
[1641266064949,27.66479,167.1,167.06,2.08447008]
[1641266065650,2.13261073,167.09,167.06,2.08447008]
[1641266065851,6.46561073,167.09,167.06,2.08447008]
[1641266067255,4.333,167.09,167.06,2.08447008]
[1641266067455,12.67398456,167.12,167.06,2.08447008]
[1641266068059,12.67398456,167.12,167.1,3.0]
[1641266068256,12.67398456,167.12,167.05,5.08447008]
[1641266068654,12.67398456,167.12,167.09,3.0]
[1641266069157,12.67398456,167.13,167.09,3.0]
[1641266070659,12.67398456,167.13,167.05,46.10377456]
[1641266070860,40.33877456,167.13,167.08,3.0]
[1641266071060,12.67398456,167.12,167.08,3.0]
[1641266071362,12.67398456,167.12,167.06,2.08446907]
[1641266071560,14.81427298,167.12,167.05,5.765]
[1641266071764,14.81427298,167.12,167.07,3.0]
[1641266072561,12.67398456,167.11,167.07,3.0]
[1641266073062,14.81427298,167.12,167.05,5.765]
[1641266073263,14.81427298,167.12,167.08,3.0]
[1641266074763,14.81427298,167.12,167.05,5.765]
[1641266074963,12.67398456,167.12,167.05,33.42979]
[1641266075466,12.67398456,167.11,167.06,2.0832176]
[1641266075865,12.67398456,167.11,167.09,3.0]
[1641266076368,12.67398456,167.12,167.07,3.0]
[1641266077071,12.67398456,167.11,167.07,3.0]
[1641266077870,12.67398456,167.11,167.1,3.0]
[1641266078670,12.67398456,167.11,167.1,8.54]
[1641266079071,12.67398456,167.13,167.1,11.54]
[1641266079272,12.67398456,167.13,167.1,8.54]
[1641266079472,12.67398456,167.13,167.12,3.0]
[1641266080072,2.14028842,167.15,167.12,3.0]
[1641266080271,2.14028842,167.15,167.11,2.08346402]
[1641266080471,2.14028842,167.15,167.13,3.0]
[1641266080871,2.14028842,167.15,167.11,2.08346402]
[1641266081071,14.81427298,167.15,167.13,3.0]
[1641266081271,14.81427298,167.15,167.1,5.54]
[1641266081673,14.81427298,167.15,167.14,3.0]
[1641266081874,2.14028842,167.15,167.14,3.0]
[1641266082074,2.14028842,167.15,167.11,2.08344932]
[1641266082676,2.14028842,167.15,167.14,3.0]
[1641266083376,14.81427298,167.15,167.14,3.0]
[1641266083975,14.81427298,167.15,167.12,3.0]
[1641266084277,14.81427298,167.15,167.09,34.9664]
[1641266084878,14.81427298,167.15,167.11,3.0]
[1641266085177,27.66479,167.14,167.09,3.0]
[1641266085376,12.67398456,167.13,167.09,3.0]
[1641266085778,12.67398456,167.13,167.05,52.63898456]
[1641266085977,12.67398456,167.12,167.11,3.0]
[1641266086278,12.67398456,167.12,167.05,36.965]
[1641266086478,12.67398456,167.12,167.09,3.0]
[1641266087382,12.67398456,167.12,167.05,36.965]
[1641266087581,12.67398456,167.12,167.1,3.0]
[1641266088081,12.67398456,167.12,167.06,2.08450796]
[1641266088281,12.67398456,167.12,167.09,3.0]
[1641266090582,12.67398456,167.11,167.09,3.0]
[1641266091583,12.67398456,167.11,167.05,36.965]
[1641266091989,12.67398456,167.11,167.09,3.0]
[1641266092391,12.67398456,167.1,167.09,3.0]
[1641266092990,12.67398456,167.11,167.09,3.0]
[1641266093390,12.67398456,167.11,167.05,36.965]
[1641266093592,14.81427298,167.12,167.05,36.965]
[1641266093989,14.81427298,167.12,167.09,3.0]
[1641266100497,12.67398456,167.12,167.09,3.0]
[1641266101098,12.67398456,167.12,167.06,27.66479]
[1641266101299,12.67398456,167.12,167.11,3.0]
[1641266102000,14.81427298,167.13,167.11,3.0]
[1641266103301,12.67398456,167.12,167.11,3.0]
[1641266103699,12.67398456,167.12,167.06,27.66479]
[1641266103899,12.67398456,167.12,167.09,3.0]
[1641266104099,10.6646805,167.13,167.06,27.66479]
[1641266104499,4.0,167.11,167.03,40.33877456]
[1641266104699,4.0,167.11,167.03,43.33877456]
[1641266105199,12.67798955,167.07,167.03,30.66479]
[1641266105399,12.67798955,167.07,167.03,27.66479]
[1641266105602,12.67798955,167.07,167.03,30.66479]
[1641266105801,12.67798955,167.07,167.03,3.0]
[1641266107206,12.67798955,167.07,167.0,63.22189]
[1641266107405,14.81827797,167.08,167.0,75.89587456]
[1641266107707,12.67798955,167.06,167.01,2.08425436]
[1641266108106,12.67798955,167.06,167.03,3.0]
[1641266108305,12.67798955,167.06,167.01,2.08425436]
[1641266108705,12.67798955,167.06,167.05,3.0]
[1641266108906,12.67798955,167.06,167.05,8.867]
[1641266109705,4.2253716,167.06,167.05,10.95125436]
[1641266110308,4.2253716,167.06,167.05,7.95125436]
[1641266110506,4.2253716,167.06,167.05,5.08425436]
[1641266110708,4.2253716,167.06,167.05,2.08425436]
[1641266111709,2.14028842,167.09,167.05,2.08425436]
[1641266112010,14.81827797,167.09,167.05,4.22583772]
[1641266112409,51.38306797,167.09,167.05,4.22583772]
[1641266112609,12.67798955,167.08,167.04,4.22583772]
[1641266113613,14.81827797,167.08,167.03,6.31009208]
[1641266114212,4.22623152,167.04,167.03,6.31009208]
[1641266114510,36.09502152,167.04,167.0,11.67398456]
[1641266114710,36.09502152,167.04,167.0,5.61398456]
[1641266114910,31.86879,167.04,166.96,35.92887853]
[1641266115111,31.86879,167.04,166.95,27.66479]
[1641266115313,31.86879,167.04,166.98,3.0]
[1641266115512,31.86879,167.04,166.95,27.66479]
[1641266115713,31.86879,167.04,166.98,3.0]
[1641266116112,31.86879,167.04,166.95,27.66479]
[1641266116312,31.86879,167.04,166.97,3.0]
[1641266117315,31.86879,167.04,166.95,27.66479]
[1641266117513,31.86879,167.04,166.99,3.0]
[1641266118115,31.86879,167.04,166.95,27.66479]
[1641266118315,31.86879,167.04,166.99,3.0]